fUSD/lending_fUSD_20240718
["ID","MTS","AMOUNT","RATE_DAILY","PERIOD"]
[332591281,1721317813024,150.0,0.00013717,2]
[332591282,1721317813212,150.0,0.00013717,2]
[332591283,1721317813431,150.0,0.00013717,2]
[332591284,1721317813613,150.0,0.00013717,2]
[332591285,1721317813848,150.0,0.00013717,2]
[332591286,1721317814095,150.0,0.00013717,2]
[332591287,1721317814194,150.0,0.00013717,2]
[332591288,1721317814479,150.0,0.00013717,2]
[332591289,1721317814575,150.0,0.00013717,2]
[332591290,1721317814752,150.0,0.00013717,2]
[332591291,1721317815740,150.0,0.00013717,2]
[332591292,1721317815849,150.0,0.00013717,2]
[332591293,1721317815909,188.17963668,0.00013717,2]
[332591301,1721317832660,-150.99,0.00014989,2]
[332591302,1721317832670,-458.87344662,0.00014989,2]
[332591303,1721317832778,-3.70109438,0.00014989,2]
[332591304,1721317832788,-776.71598788,0.0001499,2]
[332591305,1721317832798,-969.58291774,0.0001499,2]
[332591306,1721317832859,-103.87708226,0.0001499,2]
[332591307,1721317832868,-150.0,0.00015,2]
[332591308,1721317832878,-2140.19,0.00015,2]
[332591309,1721317832887,-300.0,0.00015299,2]
[332591310,1721317832897,-156.46322794,0.00015299,2]
[332591311,1721317832906,-538.87014568,0.00015299,2]
[332591312,1721317832916,-1445.31971311,0.000153,2]
[332591313,1721317832926,-1266.16665698,0.000153,2]
[332591314,1721317832935,-410.2183359,0.000153,2]
[332591315,1721317832944,-178.89483813,0.00015301,2]
[332591316,1721317833100,-348.9147864,0.00015301,2]
[332591317,1721317833112,-877.0125361,0.00015301,2]
[332591318,1721317833122,-1388.47743863,0.00015302,2]
[332591319,1721317833132,-1388.47743863,0.00015302,2]
[332591320,1721317833141,-171.85,0.00015809,2]
[332591321,1721317833151,-242.70193871,0.0001628,2]
[332591322,1721317833161,-293.03052447,0.00016281,2]
[332591323,1721317833170,-263.86139089,0.00016281,2]
[332591324,1721317833180,-155.0,0.00016282,2]
[332591325,1721317833190,-1213.54039519,0.00016426,2]
[332591334,1721317833720,-43.41053675,0.00016426,2]
[332591335,1721317833730,-218.4424432,0.00016426,2]
[332591336,1721317833741,-226.25339825,0.00016427,2]
[332591337,1721317833751,-155.0,0.00016427,2]
[332591338,1721317833761,-158.57970611,0.00016427,2]
[332591339,1721317833771,-256.59073913,0.00016428,2]
[332591340,1721317833781,-155.08707796,0.00016428,2]
[332591341,1721317833791,-250.0,0.00016428,2]
[332591342,1721317833801,-281.24162147,0.00016429,2]
[332591343,1721317833811,-255.0,0.0001644,2]
[332591344,1721317833820,-155.0,0.00016441,2]
[332591345,1721317833830,-155.0,0.00016441,2]
[332591346,1721317833839,-174.94180599,0.00016441,2]
[332591347,1721317833849,-597.48884239,0.00016442,2]
[332591348,1721317833880,-1634.70153,0.00016442,2]
[332591349,1721317833891,-1259.94516769,0.00016442,2]
[332591350,1721317833911,-2589.66502975,0.00016442,2]
[332591363,1721317837870,-1273.04144729,0.00014989,2]
[332591364,1721317837882,-2123.93814826,0.00014989,2]
[332591365,1721317837894,-500.54133244,0.00014989,2]
[332591366,1721317837910,-473.66,0.00014989,2]
[332591376,1721317839934,-7771.51904502,0.00014989,2]
[332591377,1721317839944,-317.56043887,0.00015301,2]
[332591378,1721317839955,-14276.82043017,0.00016442,2]
[332591379,1721317839964,-289.2413264,0.00016626,2]
[332591380,1721317839974,-7564.17944431,0.00016626,2]
[332591381,1721317839984,-796.88409197,0.00016626,2]
[332591382,1721317839996,-420.0,0.00016739,2]
[332591383,1721317840006,-200.0,0.00017,2]
[332591384,1721317840016,-587.0,0.00018314,2]
[332591385,1721317840026,-151.40792386,0.00018556,2]
[332591386,1721317840036,-12550.2,0.0001884,2]
[332591387,1721317840046,-944.17,0.0001884,2]
[332591388,1721317840057,-250.0,0.0001884,2]
[332591389,1721317840068,-10158.87,0.0001884,2]
[332591390,1721317840078,-1322.78,0.00018991,2]
[332591391,1721317840088,-250.0,0.00019,2]
[332591392,1721317840098,-717.37799015,0.00019091,2]
[332591393,1721317840108,-745.07,0.00019296,2]
[332591394,1721317840118,-315.94,0.00019356,2]
[332591395,1721317840128,-151.84947485,0.00019473,2]
[332591396,1721317840138,-151.40792386,0.0001948,2]
[332591397,1721317840148,-553.76,0.0001948,2]
[332591398,1721317840157,-707.96,0.00019569,2]
[332591399,1721317840167,-1236.84,0.00019765,2]
[332591400,1721317840177,-151.40792386,0.00019962,2]
[332591401,1721317840187,-188.54908717,0.0002,2]
[332591402,1721317840197,-4287.2748754,0.0002,15]
[332591403,1721317840206,-225.56862846,0.0002,2]
[332591404,1721317840216,-420.0,0.00020038,2]
[332591405,1721317840226,-151.40792386,0.0002009,2]
[332591406,1721317840236,-1163.19542102,0.000202,2]
[332591407,1721317840247,-151.40792386,0.00020496,2]
[332591408,1721317840256,-805.0,0.000207,2]
[332591409,1721317840266,-2751.0,0.00020704,2]
[332591410,1721317840275,-963.0,0.000208,2]
[332591411,1721317840284,-151.40792386,0.00020982,2]
[332591412,1721317840294,-300.0,0.00021,2]
[332591413,1721317840303,-994.68,0.00021021,2]
[332591414,1721317840313,-151.40792386,0.00021052,2]
[332591415,1721317840323,-155.75613055,0.00021169,2]
[332591416,1721317840332,-348.54,0.00021415,2]
[332591417,1721317840341,-315.94,0.0002162,2]
[332591418,1721317840351,-151.40792386,0.00021673,2]
[332591419,1721317840360,-4319.15,0.00021887,2]
[332591420,1721317840370,-553.76,0.00021915,2]
[332591421,1721317840379,-150.0,0.00021918,2]
[332591422,1721317840389,-400.0,0.00022125,2]
[332591423,1721317840399,-151.40792386,0.00022398,2]
[332591424,1721317840408,-350.0,0.00023,2]
[332591425,1721317840417,-254.26,0.00023307,2]
[332591426,1721317840427,-1109.65646291,0.0002354,2]
[332591427,1721317840436,-151.81624989,0.00023833,2]
[332591428,1721317840445,-315.94,0.00023884,2]
[332591429,1721317840456,-348.54,0.00024092,2]
[332591430,1721317840470,-156.04842843,0.00024152,2]
[332591431,1721317840479,-151.40792386,0.00024288,2]
[332591432,1721317840490,-553.76,0.0002435,2]
[332591433,1721317840500,-156.04842843,0.00024542,2]
[332591434,1721317840510,-150.0,0.00024658,2]
[332591435,1721317840520,-170.08264759,0.0002489,2]
[332591436,1721317840530,-153.70869321,0.00025085,2]
[332591437,1721317840540,-153.70869321,0.00025799,2]
[332591438,1721317840550,-315.94,0.00026148,2]
[332591439,1721317840560,-2609.0,0.000262,2]
[332591440,1721317840570,-151.40792386,0.00026344,2]
[332591441,1721317840580,-151.40792386,0.00026608,2]
[332591442,1721317840589,-348.54,0.00026769,120]
[332591443,1721317840599,-553.76,0.00026785,2]
[332591444,1721317840609,-11492.0,0.00027,3]
[332591445,1721317840618,-153.70869321,0.00027031,2]
[332591446,1721317840628,-151.40792386,0.00027222,2]
[332591447,1721317840638,-150.0,0.00027397,2]
[332591448,1721317840647,-151.40792386,0.00027619,2]
[332591449,1721317840656,-400.0,0.00027656,120]
[332591450,1721317840667,-11492.0,0.000277,5]
[332591451,1721317840676,-153.70869321,0.00028017,2]
[332591452,1721317840686,-155.52261723,0.00028025,2]
[332591453,1721317840695,-151.40792386,0.00028116,2]
[332591454,1721317840705,-153.70869321,0.0002812,2]
[332591455,1721317840714,-151.40792386,0.00028173,2]
[332591456,1721317840724,-707.67943423,0.00028212,2]
[332591457,1721317840734,-35000.0,0.00028219,2]
[332591458,1721317840746,-5316.19159119,0.00028312,2]
[332591459,1721317840756,-315.94,0.00028412,2]
[332591460,1721317840766,-707.67943421,0.00028932,2]
[332591461,1721317840775,-5316.19159113,0.00029021,15]
[332591462,1721317840785,-151.40792386,0.0002911,2]
[332591463,1721317840794,-1083.73673558,0.00029219,2]
[332591464,1721317840805,-553.76,0.0002922,2]
[332591465,1721317840814,-994.68,0.0002943,2]
[332591466,1721317840824,-151.0,0.00029437,2]
[332591467,1721317840834,-348.54,0.00029446,120]
[332591468,1721317840844,-151.40792386,0.00029597,2]
[332591469,1721317840854,-155.20847491,0.00029629,2]
[332591470,1721317840864,-255.76209991,0.00029629,2]
[332591471,1721317840873,-151.84947485,0.0002963,2]
[332591472,1721317840883,-155.85668285,0.00029638,2]
[332591473,1721317840893,-707.67943421,0.00029652,15]
[332591474,1721317840902,-500.0,0.00029659,3]
[332591475,1721317840912,-159.95883883,0.00029667,2]
[332591476,1721317840922,-500.0,0.00029668,3]
[332591477,1721317840931,-500.0,0.00029677,3]
[332591478,1721317840940,-500.0,0.00029686,3]
[332591479,1721317840950,-500.0,0.00029694,3]
[332591480,1721317840960,-500.0,0.00029703,3]
[332591481,1721317840969,-150.73897012,0.00029709,2]
[332591482,1721317840982,-153.70869321,0.00029711,2]
[332591483,1721317841029,-500.0,0.00029712,3]
[332591484,1721317841080,-500.0,0.00029721,3]
[332591485,1721317841129,-5316.19159113,0.0002973,15]
[332591486,1721317841167,-151.40792386,0.00029941,2]
[332591487,1721317841176,-319.0,0.0003,60]
[332591488,1721317841186,-233.43786833,0.0003,3]
[332591489,1721317841196,-200.0,0.000301,2]
[332591490,1721317841205,-150.0,0.00030137,2]
[332591491,1721317841214,-690.43688193,0.00030169,4]
[332591492,1721317841223,-151.40792386,0.00030251,7]
[332591493,1721317841232,-2962.23109773,0.00030372,4]
[332591494,1721317841241,-707.67943421,0.00030373,15]
[332591495,1721317841250,-400.0,0.00030421,120]
[332591496,1721317841259,-227.41308538,0.00030438,5]
[332591497,1721317841269,-5316.19159113,0.00030439,15]
[332591498,1721317841279,-153.70869321,0.00030481,7]
[332591499,1721317841288,-315.94,0.00030675,2]
[332591500,1721317841297,-707.67943421,0.00031093,15]
[332591501,1721317841306,-157.30273304,0.0003114,7]
[332591502,1721317841315,-5316.19159113,0.00031148,15]
[332591503,1721317841326,-153.70869321,0.00031575,7]
[332591504,1721317841335,-707.67943421,0.00031813,15]
[332591505,1721317841345,-5316.19159113,0.00031858,15]
[332591506,1721317841354,-151.40792386,0.00032098,7]
[332591507,1721317841364,-3000.0,0.000321,2]
[332591508,1721317841373,-384.95310252,0.000321,2]
[332591509,1721317841382,-348.54,0.00032123,120]
[332591510,1721317841392,-153.70869321,0.00032346,7]
[332591511,1721317841401,-156.04842845,0.00032423,7]
[332591512,1721317841410,-151.40792386,0.00032512,7]
[332591513,1721317841419,-707.67943421,0.00032533,15]
[332591514,1721317841429,-5316.19159113,0.00032567,15]
[332591515,1721317841438,-151.40792386,0.00032842,7]
[332591516,1721317841447,-151.40792386,0.00032849,7]
[332591517,1721317841457,-150.0,0.00032877,2]
[332591518,1721317841471,-641.20446286,0.00032938,4]
[332591519,1721317841480,-315.94,0.00032939,2]
[332591520,1721317841491,-153.70869321,0.00033034,7]
[332591521,1721317841500,-425.12,0.00033151,2]
[332591522,1721317841510,-165.12,0.00033151,2]
[332591523,1721317841519,-150.0,0.00033151,2]
[332591524,1721317841529,-355.49,0.00033151,2]
[332591525,1721317841539,-150.0,0.00033151,2]
[332591526,1721317841548,-529.3,0.00033151,2]
[332591527,1721317841558,-355.49,0.00033151,2]
[332591528,1721317841567,-330.24,0.00033151,2]
[332591529,1721317841576,-150.0,0.00033151,2]
[332591530,1721317841585,-150.0,0.00033151,2]
[332591531,1721317841594,-425.12,0.00033151,2]
[332591532,1721317841603,-150.0,0.00033151,2]
[332591533,1721317841612,-709.86,0.00033151,2]
[332591534,1721317841621,-425.12,0.00033151,2]
[332591535,1721317841631,-150.0,0.00033151,2]
[332591536,1721317841640,-425.12,0.00033151,2]
[332591537,1721317841649,-150.0,0.00033151,2]
[332591538,1721317841659,-425.12,0.00033151,2]
[332591539,1721317841668,-420.18,0.00033151,2]
[332591540,1721317841678,-400.0,0.00033187,120]
[332591541,1721317841687,-300.0,0.00033237,4]
[332591542,1721317841697,-151.40792386,0.00033238,7]
[332591543,1721317841706,-707.67943421,0.00033254,15]
[332591544,1721317841715,-5316.19159113,0.00033276,15]
[332591545,1721317841724,-156.01357117,0.00033759,7]
[332591546,1721317841734,-5316.19159113,0.00033985,15]
[332591547,1721317841743,-219.99241863,0.00034,10]
[332591548,1721317841753,-2550.34564172,0.00034018,2]
[332591549,1721317841762,-500.0,0.00034164,60]
[332591550,1721317841771,-536.16,0.00034164,60]
[332591551,1721317841781,-150.0,0.00034219,2]
[332591552,1721317841790,-424.66,0.00034219,2]
[332591553,1721317841799,-2110.0,0.00034294,15]
[332591554,1721317841809,-500.0,0.00034438,63]
[332591555,1721317841818,-536.16,0.00034438,63]
[332591556,1721317841828,-500.0,0.00034517,10]
[332591557,1721317841837,-200.0,0.00034517,10]
[332591558,1721317841846,-500.0,0.0003452,14]
[332591559,1721317841855,-500.0,0.0003452,14]
[332591560,1721317841864,-500.0,0.0003452,14]
[332591561,1721317841873,-500.0,0.0003452,14]
[332591562,1721317841882,-500.0,0.0003452,14]
[332591563,1721317841891,-500.0,0.0003452,14]
[332591564,1721317841901,-500.0,0.0003452,14]
[332591565,1721317841910,-500.0,0.0003452,14]
[332591566,1721317841920,-500.0,0.0003452,14]
[332591567,1721317841929,-500.0,0.0003452,14]
[332591568,1721317841939,-500.0,0.0003452,14]
[332591569,1721317841949,-500.0,0.0003452,14]
[332591570,1721317841958,-500.0,0.0003452,14]
[332591571,1721317841968,-500.0,0.0003452,14]
[332591572,1721317841977,-500.0,0.0003452,14]
[332591573,1721317841987,-500.0,0.0003452,14]
[332591574,1721317841997,-500.0,0.0003452,14]
[332591575,1721317842007,-568.89326695,0.0003452,14]
[332591576,1721317842016,-254.26,0.00034539,120]
[332591577,1721317842025,-150.0,0.00034548,10]
[332591578,1721317842035,-150.0,0.00034655,2]
[332591579,1721317842044,-150.0,0.00034659,2]
[332591580,1721317842053,-150.0,0.00034662,2]
[332591581,1721317842063,-150.0,0.00034668,2]
[332591582,1721317842073,-7500.0,0.00034684,2]
[332591583,1721317842082,-15258.3578558,0.00034684,5]
[332591584,1721317842092,-167.77557861,0.00034684,2]
[332591585,1721317842103,-340.93657207,0.00034684,2]
[332591586,1721317842113,-220.57,0.00034685,2]
[332591587,1721317842122,-167.7755786,0.00034689,2]
[332591588,1721317842132,-6847.4107,0.00034694,2]
[332591589,1721317842142,-327.46141796,0.00034694,7]
[332591590,1721317842151,-622.0,0.00034694,5]
[332591591,1721317842161,-173.05043953,0.00034694,2]
[332591592,1721317842170,-330.07335395,0.00034694,7]
[332591593,1721317842179,-5316.19159113,0.00034694,15]
[332591594,1721317842189,-167.7755786,0.00034694,2]
[332591595,1721317842198,-1059.91940448,0.00034694,2]
[332591596,1721317842207,-150.0,0.000347,20]
[332591597,1721317842217,-1010.0,0.000347,7]
[332591598,1721317842226,-150.0,0.00034704,2]
[332591599,1721317842235,-500.0,0.00034712,66]
[332591600,1721317842247,-536.16,0.00034712,66]
[332591601,1721317842256,-5086.11928526,0.00034769,5]
[332591602,1721317842265,-150.0,0.00034772,2]
[332591603,1721317842274,-29324.6509555,0.00034774,5]
[332591604,1721317842393,-865.0,0.00034774,5]
[332591605,1721317842416,-1455.71001,0.00034774,5]
[332591609,1721317842635,-1596.3,0.00034774,5]
[332591645,1721317845247,-253.86930487,0.00027397,10]
[332591646,1721317845258,-1345.92069513,0.00027397,10]
[332591647,1721317845268,-120.87519487,0.00029629,2]
[332591648,1721317845280,-118.69929831,0.00029629,2]
[332591649,1721317845289,-5000.0,0.00029651,2]
[332591650,1721317845299,-12533.4126018,0.00034774,5]
[332591651,1721317845308,-5086.11928526,0.00034777,5]
[332591652,1721317845318,-5800.0,0.00034779,2]
[332591653,1721317845328,-10172.2385705,0.00034783,5]
[332591654,1721317845338,-573.16423982,0.00034783,30]
[332591655,1721317845350,-1426.83576018,0.00034783,30]
[332591656,1721317845360,-1271.66330283,0.00034784,5]
[332591657,1721317845372,-1516.6,0.00034784,5]
[332591658,1721317845384,-66640.68513459,0.00034784,5]
[332591659,1721317845396,-661.3131406,0.00034784,5]
[332591660,1721317845407,-5960.0,0.00034784,5]
[332591703,1721317846585,-227.41308538,0.0003042,5]
[332591704,1721317846595,-707.67943421,0.00033974,15]
[332591705,1721317846604,-786.90748041,0.00034784,5]
[332591706,1721317846617,-2026.77504163,0.00034784,5]
[332591707,1721317846628,-2305.89672926,0.00034784,5]
[332591708,1721317846640,-1082.61991605,0.00034784,5]
[332591709,1721317847809,-5142.33062268,0.00034784,5]
[332591710,1721317847834,-1465.17353051,0.00034784,5]
[332591711,1721317847845,-272.2950575,0.00034784,5]
[332591712,1721317847855,-515.14099998,0.00034784,5]
[332591713,1721317847866,-2900.52315067,0.00034784,5]
[332591714,1721317847877,-500.0,0.00034784,5]
[332591715,1721317847892,-4931.05119658,0.00034784,5]
[332591716,1721317847903,-901.28124099,0.00034784,5]
[332591717,1721317847914,-475.81398569,0.00034784,5]
[332591718,1721317847925,-3649.83909186,0.00034784,5]
[332591719,1721317850490,-352.58167059,0.00034784,5]
[332591720,1721317850505,-990.79497329,0.00034784,5]
[332591721,1721317850516,-4481.77074583,0.00034784,5]
[332591722,1721317850686,-3385.47055514,0.00034784,5]
[332591724,1721318049954,237.29,0.00013579,3]
[332591725,1721318049980,862.53263842,0.00013579,3]
[332591726,1721318077930,7106.4397858,0.00013579,2]
[332591727,1721318091907,796.88409197,0.00013579,2]
[332591728,1721318139612,237.29,0.00013579,2]
[332591729,1721318198918,387.17277442,0.00013579,2]
[332591730,1721318235692,281.24162147,0.00013579,2]
[332591731,1721318309958,1252.14308418,0.00013472,2]
[332591733,1721318825704,2204.74628846,0.00013579,2]
[332591734,1721318830078,7795.25371154,0.00013578,2]
[332591735,1721318830100,6566.22058327,0.00013578,2]
[332591782,1721319032318,-3145.76242852,0.00014466,2]
[332591783,1721319032372,-5923.30850625,0.00014466,2]
[332591784,1721319032382,-12655.9032,0.00014467,2]
[332591785,1721319032393,-652.36654686,0.00014559,2]
[332591786,1721319032404,-1392.18555943,0.0001456,2]
[332591787,1721319032414,-281.24162147,0.0001456,2]
[332591788,1721319032423,-241.08542107,0.00014561,2]
[332591789,1721319032434,-561.9123982,0.00014563,2]
[332591790,1721319032444,-538.87014568,0.00014988,2]
[332591791,1721319032455,-538.87014568,0.00014988,2]
[332591792,1721319032465,-155.29584401,0.00014995,2]
[332591793,1721319032476,-227.41308538,0.00014995,2]
[332591794,1721319032485,-436.42077402,0.00014996,2]
[332591795,1721319032495,-150.0,0.00015,2]
[332591796,1721319032505,-2083.96461293,0.00015999,2]
[332591797,1721319032515,-5000.0,0.00016,2]
[332591798,1721319032524,-200.0,0.00017,2]
[332591799,1721319032534,-2497.75927572,0.00017,2]
[332591800,1721319032543,-155.08215645,0.00018423,2]
[332591801,1721319032554,-153.55759405,0.000186,2]
[332591802,1721319032563,-153.66948282,0.00018611,2]
[332591803,1721319032573,-250.0,0.00019,2]
[332591804,1721319032582,-155.15152638,0.0001917,2]
[332591805,1721319032592,-155.15152638,0.00019429,2]
[332591806,1721319032602,-151.81624989,0.0001954,2]
[332591807,1721319032613,-150.96706143,0.0001957,2]
[332591808,1721319032624,-155.15152638,0.00019585,2]
[332591809,1721319032634,-155.15152638,0.00020128,2]
[332591811,1721319032643,-155.08215645,0.00020141,2]
[332591813,1721319032654,-155.15152638,0.0002041,2]
[332591815,1721319032663,-150.96706143,0.00020664,2]
[332591816,1721319032673,-300.0,0.00021,2]
[332591817,1721319032684,-837.0,0.000215,2]
[332591818,1721319032695,-162.76,0.00021644,2]
[332591820,1721319032704,-234.87,0.00021644,2]
[332591823,1721319032715,-150.32699266,0.00021698,2]
[332591824,1721319032725,-170.24,0.00021918,2]
[332591826,1721319032735,-150.96706143,0.00021942,2]
[332591828,1721319032744,-500.0,0.00022,2]
[332591830,1721319032753,-150.96706143,0.00022382,2]
[332591832,1721319032763,-153.55759405,0.0002262,2]
[332591834,1721319032772,-150.96706143,0.00022643,2]
[332591836,1721319032781,-154.98095528,0.00022784,2]
[332591838,1721319032791,-166.66666668,0.00022904,2]
[332591840,1721319032801,-350.0,0.00023,2]
[332591842,1721319032810,-156.01357117,0.00023221,2]
[332591844,1721319032820,-151.81624989,0.00023517,2]
[332591845,1721319032833,-221.31,0.00023571,2]
[332591846,1721319032842,-200.03,0.00023942,2]
[332591847,1721319032852,-267.2,0.00023982,5]
[332591848,1721319032862,-156.01357117,0.00024089,2]
[332591849,1721319032873,-155.15152638,0.00024481,2]
[332591850,1721319032882,-150.0,0.00024854,2]
[332591851,1721319032892,-366.51,0.00024869,2]
[332591852,1721319032901,-400.0,0.00025,2]
[332591853,1721319032913,-296.67,0.00025018,2]
[332591854,1721319032922,-153.55759405,0.0002559,2]
[332591855,1721319032933,-155.15152638,0.00025752,2]
[332591856,1721319032942,-151.87,0.00025834,2]
[332591857,1721319032951,-221.31,0.00025835,2]
[332591858,1721319032961,-153.55759405,0.00026022,2]
[332591859,1721319032972,-155.08215647,0.00026264,2]
[332591860,1721319032982,-153.70869325,0.00026318,2]
[332591861,1721319032991,-1000.0,0.00026379,2]
[332591862,1721319033001,-305.06,0.00026436,120]
[332591863,1721319033011,-450.0,0.00027,2]
[332591864,1721319033020,-150.96706143,0.00027079,2]
[332591865,1721319033030,-150.0,0.00027377,2]
[332591866,1721319033040,-169.59644656,0.00027532,2]
[332591867,1721319033052,-10.40355344,0.00027532,2]
[332591868,1721319033062,-156.01357117,0.0002767,2]
[332591869,1721319033072,-234.87,0.00027714,2]
[332591870,1721319033082,-155.15152638,0.00027725,2]
[332591871,1721319033092,-221.31,0.00028099,2]
[332591872,1721319033101,-423.78,0.00028445,2]
[332591873,1721319033110,-150.73897012,0.0002889,2]
[332591874,1721319033120,-150.32699266,0.00028999,2]
[332591875,1721319033129,-500.0,0.00029,2]
[332591876,1721319033138,-153.66948282,0.00029439,2]
[332591877,1721319033148,-155.15152638,0.00029701,2]
[332591878,1721319033158,-305.06,0.0002974,120]
[332591879,1721319033167,-1000.0,0.00029762,2]
[332591880,1721319033177,-3291.16022647,0.00029763,3]
[332591881,1721319033201,-330.05428612,0.00029763,3]
[332591882,1721319033213,-1013.33205997,0.00029763,3]
[332591883,1721319033227,-2188.8407,0.00029763,3]
[332591891,1721319038001,-159.10211114,0.00014562,2]
[332591892,1721319038011,-3208.10088886,0.00029763,3]
[332591893,1721319038107,-464.69727716,0.00029763,3]
[332591894,1721319038119,-406.46916604,0.00029763,3]
[332591895,1721319038131,-613.21,0.00029763,3]
[332591896,1721319038165,-4771.19905545,0.00029763,3]
[332591897,1721319038174,-150.96706143,0.00029884,2]
[332591898,1721319038184,-181.0,0.00029887,2]
[332591899,1721319038193,-181.0,0.00029887,2]
[332591900,1721319038203,-181.0,0.00029887,2]
[332591901,1721319038212,-181.0,0.00029887,2]
[332591902,1721319038222,-181.0,0.00029887,2]
[332591903,1721319038232,-181.0,0.00029887,2]
[332591904,1721319038241,-181.0,0.00029887,2]
[332591905,1721319038250,-181.0,0.00029887,2]
[332591906,1721319038259,-181.0,0.00029887,2]
[332591907,1721319038269,-181.0,0.00029887,2]
[332591908,1721319038278,-181.0,0.00029887,2]
[332591909,1721319038288,-181.0,0.00029887,2]
[332591910,1721319038297,-181.0,0.00029887,2]
[332591911,1721319038306,-181.0,0.00029887,2]
[332591912,1721319038316,-181.0,0.00029887,2]
[332591913,1721319038326,-181.0,0.00029887,2]
[332591914,1721319038336,-181.0,0.00029887,2]
[332591915,1721319038346,-181.0,0.00029887,2]
[332591916,1721319038355,-181.0,0.00029887,2]
[332591917,1721319038365,-181.0,0.00029887,2]
[332591918,1721319038374,-181.0,0.00029887,2]
[332591920,1721319038384,-181.0,0.00029887,2]
[332591922,1721319038393,-181.0,0.00029887,2]
[332591924,1721319038403,-181.0,0.00029887,2]
[332591926,1721319038412,-181.0,0.00029887,2]
[332591928,1721319038422,-181.0,0.00029887,2]
[332591930,1721319038432,-181.0,0.00029887,2]
[332591932,1721319038441,-181.0,0.00029887,2]
[332591934,1721319038451,-181.0,0.00029887,2]
[332591935,1721319038461,-181.0,0.00029887,2]
[332591937,1721319038471,-181.0,0.00029887,2]
[332591940,1721319038481,-181.0,0.00029887,2]
[332591942,1721319038490,-181.0,0.00029887,2]
[332591944,1721319038500,-181.0,0.00029887,2]
[332591945,1721319038512,-181.0,0.00029887,2]
[332591947,1721319038521,-181.0,0.00029887,2]
[332591949,1721319038531,-181.0,0.00029887,2]
[332591951,1721319038541,-181.0,0.00029887,2]
[332591953,1721319038550,-198.65,0.00029889,5]
[332591955,1721319038560,-181.0,0.0002989,2]
[332591957,1721319038569,-181.0,0.0002989,2]
[332591960,1721319038579,-181.0,0.0002989,2]
[332591963,1721319038588,-181.0,0.0002989,2]
[332591965,1721319038597,-181.0,0.0002989,2]
[332591968,1721319038607,-181.0,0.0002989,2]
[332591971,1721319038616,-181.0,0.0002989,2]
[332591973,1721319038626,-181.0,0.0002989,2]
[332591975,1721319038636,-181.0,0.0002989,2]
[332591977,1721319038645,-181.0,0.0002989,2]
[332591979,1721319038655,-181.0,0.0002989,2]
[332591981,1721319038665,-181.0,0.0002989,2]
[332591984,1721319038674,-181.0,0.0002989,2]
[332591986,1721319038684,-181.0,0.0002989,2]
[332591988,1721319038693,-181.0,0.0002989,2]
[332591990,1721319038703,-181.0,0.0002989,2]
[332591992,1721319038712,-181.0,0.0002989,2]
[332591994,1721319038722,-181.0,0.0002989,2]
[332591995,1721319038732,-181.0,0.0002989,2]
[332591997,1721319038741,-181.0,0.0002989,2]
[332591999,1721319038752,-181.0,0.0002989,2]
[332592001,1721319038761,-181.0,0.0002989,2]
[332592003,1721319038771,-181.0,0.0002989,2]
[332592005,1721319038780,-181.0,0.0002989,2]
[332592007,1721319038790,-181.0,0.0002989,2]
[332592009,1721319038799,-181.0,0.0002989,2]
[332592011,1721319038809,-181.0,0.0002989,2]
[332592013,1721319038818,-181.0,0.0002989,2]
[332592015,1721319038828,-181.0,0.0002989,2]
[332592018,1721319038841,-181.0,0.0002989,2]
[332592020,1721319038851,-181.0,0.0002989,2]